Workbook

Sheet MSU
B1: Sami Saloranta | E1: 8.3.1972
B2: SUPERPESIS | E2: Runkosarja | I2: Kärkilyönnit (KL), pesänvälit | P2: Ylempi loppusarja | U2: Alempi loppusarja | Z2: Arvo-ottelut ja mitalit
B3: Vuosi | C3: Sija | D3: Seura | E3: OTT | F3: KUN | G3: LÖI | H3: TOI | I3: KL | J3: 0 > 1 | K3: 1 > 2 | L3: 2 > 3 | M3: 3 > k | N3: KL-% | P3: OTT | Q3: KUN | R3: LÖI | S3: TOI | T3: KL | U3: OTT | V3: KUN | W3: LÖI | X3: TOI | Y3: KL | Z3: IL | AA3: LL | AB3: Halli | AC3: K | AD3: H | AE3: P
B4: 1988 | C4: 8. | D4: RaRa | F4: suomensarja
B5: 1989 | C5: 12. | D5: RaRa | F5: suomensarja
B6: 1990 | C6: 10. | D6: RaRa | F6: maakuntasarja
B7: 1991 | C7: 6. | D7: YK | F7: suomensarja
B8: 1992 | C8: 7. | D8: YK | F8: suomensarja
B9: 1993 | C9: 1. | D9: YK | F9: suomensarja
B10: 1994 | C10: 9. | D10: YK | F10: ykköspesis
B11: 1995 | C11: 12. | D11: YK | F11: ykköspesis
B12: 1996 | C12: 14. | D12: KeKi | F12: ykköspesis
B13: 1997 | C13: 3. | D13: KeKi | F13: suomensarja
B14: 1998 | C14: 1. | D14: KeKi | F14: suomensarja
B15: 1999 | C15: 9. | D15: KeKi | F15: ykköspesis
B16: 2000 | C16: 9. | D16: KeKi | F16: ykköspesis
B17: 2001 | C17: 10. | D17: KeKi | F17: ykköspesis
B18: 2002 | C18: 2. | D18: AA | F18: ykköspesis | U18: 5 | V18: 1 | W18: 3 | X18: 2 | Y18: 11
B19: 2003 | C19: 7. | D19: KeKi | F19: ykköspesis
B20: ****
B21: 2006 | C21: 8. | D21: Lippo Juniorit | F21: suomensarja
B22: 2007 | C22: 2. | D22: KeKi | F22: ykköspesis | U22: 6 | V22: 0 | W22: 9 | X22: 0 | Y22: 16
B23: 2008 | C23: 3. | D23: KeKi 2 | F23: suomensarja
B24: 2009 | C24: 7. | D24: KeKi 2 | F24: suomensarja
B25: Yhteensä | E25: =SUM(E12:E24) -> 0 | F25: 0 | G25: 0 | H25: 0 | I25: 0 | J25: 0 | K25: 0 | L25: 0 | M25: 0 | P25: =SUM(P12:P24) -> 0 | Q25: 0 | R25: 0 | S25: 0 | T25: 0 | U25: 11 | V25: 1 | W25: 12 | X25: 2 | Y25: 27 | Z25: 0 | AA25: 0 | AB25: 0 | AC25: 0 | AD25: 0 | AE25: 0
B26: Pesispörssi | D26: =SUM(F25:H25)+((I25-F25-G25)/3)+(E25/3)+(Z25*25)+(AA25*25)+(AB25*10)+(AC25*25)+(AD25*20)+(AE25*15) -> 0.0
B28: URA SUPERISSA | E28: OTT | F28: KUN | G28: LÖI | H28: TOI | I28: KL | K28: ka/L | L28: ka/T | M28: ka/KL | N28: KL-% | P28: ENSIMMÄISET
B29: Runkosarja | P29: Ottelu | R29: 24.08. 2002 AA - Lippo 0-2 (0-3, 8-19) | Y29: 1. ottelu | AB29: 30 v 5 kk 16 pv | AE29: ALS
B30: Ylempi loppusarja | P30: Lyöty | R30: 28.08. 2002 AA - PuPe 0-1 (3-3, 6-7) | Y30: 2. ottelu | AB30: 30 v 5 kk 20 pv | AE30: ALS
B31: Alempi loppusarja | E31: =SUM(U25) -> 11 | F31: =SUM(V25) -> 1 | G31: =SUM(W25) -> 12 | H31: =SUM(X25) -> 2 | I31: =SUM(Y25) -> 27 | K31: =PRODUCT((F31+G31)/E31) -> 1.18 | L31: =PRODUCT(H31/E31) -> 0.18 | M31: =PRODUCT(I31/E31) -> 2.45 | N31: 41.5 % | P31: Tuotu | R31: 08.09. 2002 NJ - AA 1-0 (4-4, 6-5) | Y31: 4. ottelu | AB31: 30 v 6 kk 0 pv | AE31: ALS
B32: KAIKKI | E32: =SUM(E29:E31) -> 11 | F32: =SUM(F29:F31) -> 1 | G32: =SUM(G29:G31) -> 12 | H32: =SUM(H29:H31) -> 2 | I32: =SUM(I29:I31) -> 27 | K32: =PRODUCT((F32+G32)/E32) -> 1.18 | L32: =PRODUCT(H32/E32) -> 0.18 | M32: =PRODUCT(I32/E32) -> 2.45 | N32: 41.5 % | P32: Kunnari | R32: 08.09. 2002 NJ - AA 1-0 (4-4, 6-5) | Y32: 4. ottelu | AB32: 30 v 6 kk 0 pv | AE32: ALS
B34: Seurat | D34: RaRa = Rantsilan Raikas (1934), kasvattajaseura | K34: YK = Ylivieskan Kuula (1909) | Q34: KeKi = Kempeleen Kiri (1915) | W34: AA = Alajärven Ankkurit (1944) | AC34: Lippo Juniorit = Oulun Lippo Juniorit (2003)

Sheet MYP, MSS
B1: Sami Saloranta | E1: 8.3.1972
B2: YKKÖSPESIS | E2: Runkosarja | L2: Runkosarja TOP-10 | Q2: Jatkosarjat | X2: SUOMENSARJA | AA2: Runkosarja | AH2: Runkosarja TOP-10 | AM2: Jatkosarjat
B3: Vuosi | C3: Sija | D3: Seura | E3: OTT | F3: KUN | G3: LÖI | H3: TOI | I3: KL | J3: KL-% | L3: LÖI | M3: TOI | N3: L+T | O3: KL | Q3: OTT | R3: KUN | S3: LÖI | T3: TOI | U3: KL | V3: KL-% | X3: Vuosi | Y3: Sija | Z3: Seura | AA3: OTT | AB3: KUN | AC3: LÖI | AD3: TOI | AE3: KL | AF3: KL-% | AH3: LÖI | AI3: TOI | AJ3: L+T | AK3: KL | AM3: OTT | AN3: KUN | AO3: LÖI | AP3: TOI | AQ3: KL | AR3: KL-%
X4: 1988 | Y4: 8. | Z4: RaRa | AA4: 3 | AB4: 0 | AC4: 0 | AD4: 0
X6: 1991 | Y6: 6. | Z6: YK | AA6: 22 | AB6: 1 | AC6: 11 | AD6: 12
X7: 1992 | Y7: 7. | Z7: YK | AA7: 16 | AB7: 0 | AC7: 8 | AD7: 11
X8: 1993 | Y8: 1. | Z8: YK | AA8: 22 | AB8: 0 | AC8: 11 | AD8: 37 | AI8: 5.
B9: 1994 | C9: 9. | D9: YK | E9: 28 | F9: 1 | G9: 8 | H9: 24 | I9: 148
B10: 1995 | C10: 12. | D10: YK | E10: 13 | F10: 2 | G10: 17 | H10: 10 | I10: 53
B11: 1996 | C11: 14. | D11: KeKi | E11: 24 | F11: 1 | G11: 12 | H11: 7 | I11: 97
X12: 1997 | Y12: 3. | Z12: KeKi
X13: 1998 | Y13: 1. | Z13: KeKi
B14: 1999 | C14: 9. | D14: KeKi
B15: 2000 | C15: 9. | D15: KeKi | E15: 24 | F15: 2 | G15: 35 | H15: 7 | I15: 95 | J15: 50.5 % | K15: 188
B16: 2001 | C16: 10. | D16: KeKi | E16: 26 | F16: 1 | G16: 59 | H16: 6 | I16: 97 | J16: 45.8 % | K16: 212 | L16: 5. | N16: 5.
B17: 2002 | C17: 2. | D17: AA | E17: 17 | F17: 2 | G17: 30 | H17: 4 | I17: 48 | J17: 50.0 % | K17: 96
B18: 2003 | C18: 7. | D18: KeKi | E18: 17 | F18: 1 | G18: 18 | H18: 1 | I18: 36 | J18: 34.3 % | K18: 105
X20: 2006 | Y20: 8. | Z20: Lippo Jun | AA20: 10 | AB20: 0 | AC20: 23 | AD20: 3 | AE20: 37 | AF20: 50.7 % | AG20: 73
B21: 2007 | C21: 2. | D21: KeKi | E21: 20 | F21: 1 | G21: 33 | H21: 3 | I21: 56 | J21: 38.1 % | K21: 147
X22: 2008 | Y22: 5. | Z22: KeKi 2 | AA22: 1 | AB22: 0 | AC22: 0 | AD22: 0 | AE22: 3 | AF22: 60.0 % | AG22: 5
X23: 2009 | Y23: 7. | Z23: KeKi 2 | AA23: 1 | AB23: 0 | AC23: 2 | AD23: 0 | AE23: 4 | AF23: 50.0 % | AG23: 8
B24: YHTEENSÄ | E24: =SUM(E4:E23) -> 169 | F24: =SUM(F4:F23) -> 11 | G24: =SUM(G4:G23) -> 212 | H24: =SUM(H4:H23) -> 62 | I24: =SUM(I4:I23) -> 630 | J24: 0.0 % | K24: =SUM(K4:K23) -> 748 | Q24: =SUM(Q4:Q23) -> 0 | R24: =SUM(R4:R23) -> 0 | S24: =SUM(S4:S23) -> 0 | T24: =SUM(T4:T23) -> 0 | U24: =SUM(U4:U23) -> 0 | V24: 0.0 % | W24: =SUM(W4:W23) -> 0 | X24: YHTEENSÄ | AA24: =SUM(AA4:AA23) -> 75 | AB24: =SUM(AB4:AB23) -> 1 | AC24: =SUM(AC4:AC23) -> 55 | AD24: =SUM(AD4:AD23) -> 63 | AE24: =SUM(AE4:AE23) -> 44 | AF24: =PRODUCT(AE24/AG24) -> 51.2 % | AG24: =SUM(AG4:AG23) -> 86 | AM24: =SUM(AM4:AM23) -> 0 | AN24: =SUM(AN4:AN23) -> 0 | AO24: =SUM(AO4:AO23) -> 0 | AP24: =SUM(AP4:AP23) -> 0 | AQ24: =SUM(AQ4:AQ23) -> 0 | AR24: 0.0 % | AS24: =SUM(AS4:AS23) -> 0
B26: KAIKKI OTTELUT | E26: OTT | F26: KUN | G26: LÖI | H26: TOI | I26: KL | J26: KL-% | L26: ka/L | M26: ka/T | N26: ka/l+t | O26: ka/kl | R26: Seurat | T26: RaRa = Rantsilan Raikas (1934), kasvattajaseura
B27: SUPERPESIS | E27: 11 | F27: 1 | G27: 12 | H27: 2 | I27: 27 | J27: 41.5 % | K27: =PRODUCT(I27/J27) -> 65.06024096 | L27: =PRODUCT((F27+G27)/E27) -> 1.18 | M27: =PRODUCT(H27/E27) -> 0.18 | N27: =PRODUCT((F27+G27+H27)/E27) -> 1.36 | O27: 2.45 | T27: YK = Ylivieskan Kuula (1909)
B28: YKKÖSPESIS | E28: =PRODUCT(E24+Q24) -> 169 | F28: =PRODUCT(F24+R24) -> 11 | G28: =PRODUCT(G24+S24) -> 212 | H28: =PRODUCT(H24+T24) -> 62 | I28: =PRODUCT(I24+U24) -> 630 | K28: =PRODUCT(K24+W24) -> 748 | L28: =PRODUCT((F28+G28)/E28) -> 1.32 | M28: =PRODUCT(H28/E28) -> 0.37 | N28: =PRODUCT((F28+G28+H28)/E28) -> 1.69 | O28: 3.73 | T28: KeKi = Kempeleen Kiri (1915)
B29: SUOMENSARJA | E29: =PRODUCT(AA24+AM24) -> 75 | F29: =PRODUCT(AB24+AN24) -> 1 | G29: =PRODUCT(AC24+AO24) -> 55 | H29: =PRODUCT(AD24+AP24) -> 63 | I29: =PRODUCT(AE24+AQ24) -> 44 | J29: =PRODUCT(I29/K29) -> 51.2 % | K29: =PRODUCT(AG24+AS24) -> 86 | L29: =PRODUCT((F29+G29)/E29) -> 0.75 | M29: =PRODUCT(H29/E29) -> 0.84 | N29: =PRODUCT((F29+G29+H29)/E29) -> 1.59 | O29: 3.67 | T29: AA = Alajärven Ankkurit (1944)
B30: YHTEENSÄ | E30: =SUM(E27:E29) -> 255 | F30: =SUM(F27:F29) -> 13 | G30: 279 | H30: 127 | I30: 701 | K30: =SUM(K27:K29) -> 899.060241 | L30: =PRODUCT((F30+G30)/E30) -> 1.15 | M30: =PRODUCT(H30/E30) -> 0.50 | N30: =PRODUCT((F30+G30+H30)/E30) -> 1.64 | O30: 3.65 | T30: Lippo Juniorit = Oulun Lippo Juniorit (2003)
